[Event "Fredericia Candidate 2022"]
[Site "Fredericia"]
[Date "2022.05.27"]
[Round "1.1"]
[White "Thuesen, Mogens"]
[Black "Loftgaard, Mikkel Vinh"]
[Result "0-1"]
[ECO "B40"]
[WhiteElo "2255"]
[BlackElo "2072"]
[Annotator "TA"]
[PlyCount "70"]
[EventDate "2022.05.25"]
[EventType "swiss"]
[EventCountry "DEN"]
[SourceTitle "playchess.com"]
[Source "ChessBase"]
[SourceQuality "1"]
[TimeControl "40/5400+30:1800+30"]

{[%evp 22,70,17,0,6,-3,10,-2,14,0,0,0,0,-11,-8,-33,-30,-134,-38,-168,-175,-172,-56,-57,-14,-9,-13,-101,-104,-86,-50,-70,-62,-54,-53,-174,-174,-320,-320,-397,-394,-396,-396,-396,-380,-522,-522,-517,-516,-516,-516]} 1. e4 {[%emt 0:00:08]} c5 {[%emt 0:03:02]} 2. Nf3 {[%emt 0:00:19]} e6 {[%emt 0:00:06]} 3. d4 {[%emt 0:00:07]} cxd4 {[%emt 0:00:05]} 4. Nxd4 {[%emt 0:00:05]} Nf6 {[%emt 0:00:07]} 5. Nc3 {[%emt 0:00:07]} Nc6 {[%emt 0:00:03]} 6. Ndb5 {[%emt 0:00:38][%cal Bd4b5,Bb5c3,Bc3e2,Be2f4][%mdl 32]} Bb4 {[%emt 0:00:25]} 7. a3 {[%emt 0:00:09]} Bxc3+ {[%emt 0:00:07]} 8. Nxc3 {[%emt 0:00:06]} d5 {[%emt 0:00:05]} 9. exd5 {[%emt 0:00:13]} exd5 {[%emt 0:00:01]} 10. Bd3 {[%emt 0:00:09]} O-O {[%emt 0:00:06]} 11. O-O {[%emt 0:00:12]} Bg4 {[%emt 0:00:03]} 12. Ne2 {[%emt 0:10:28]} Re8 {[%emt 0:04:20] B45: Sicilian Four Knights.} 13. h3 {[%emt 0:06:18]} Bh5 {[%emt 0:00:22] [#]} 14. Re1 $146 {[%emt 0:03:15]} ({Predecessor:} 14. Qd2 Ne5 15. Bb5 Nc4 16. Bxc4 dxc4 17. Nf4 Qe7 18. Nxh5 Nxh5 19. Qd5 Qe2 20. Be3 {0-1 (29) Mayer,I (1930)-Kepplinger,L (1961) Budapest 2019}) 14... Qb6 {[%emt 0:01:31] The position is equal.} 15. Qd2 {[%emt 0:22:03]} Ne5 {[%emt 0:09:56]} 16. Nf4 {[%emt 0:03:19]} Nxd3 {[%emt 0:05:33]} 17. Nxd3 {[%emt 0:00:09]} Bg6 {[%emt 0:08:07]} 18. Rd1 {[%emt 0:11:02]} Rac8 {[%emt 0:04:20]} 19. Qf4 {[%emt 0:09:19]} (19. c3 $11 {remains equal.}) 19... Rc4 {[%emt 0:04:07]} ({And not} 19... Rxc2 20. Be3 Qb3 21. Bd4 $15) ({Black should try} 19... d4 $1 $17 20. Qd2 h6) 20. Qg3 {[%emt 0:03:25]} ({White should play} 20. Be3 $15 Qd8 21. Qg3) 20... Rxc2 $19 {[%emt 0:02:26]} 21. Nb4 {[%emt 0:08:31] [#]} Ne4 {[%emt 0:03:51]} (21... Rce2 $1 $19 {Strongly threatening ...h6.} 22. Bf4 d4) 22. Qe3 $15 {[%emt 0:02:03]} Qxe3 {[%emt 0:08:07]} 23. Bxe3 {[%emt 0:00:09]} Rxb2 {[%emt 0:00:33] White must now prevent ...Nc3.} 24. Bxa7 {[%emt 0:00:40]} (24. Nxd5 $11 {keeps the balance.} f6 25. Bxa7) 24... Nc3 $17 {[%emt 0:00:53][%cal Be4c3,Bc3b5,Bb5c7,Bc7e6][%mdl 32]} 25. Re1 {[%emt 0:02:12][%cal Re1e8]} Ra8 {[%emt 0:03:24] 0x0.00226b442b4edp-1022s more active pieces.} 26. Kf1 {[%emt 0:01:11]} Nb5 $36 {[%emt 0:03:55][%mdl 2048] Against Bd4. Black has some pressure.} 27. Bc5 {[%emt 0:01:11]} d4 {[%emt 0:01:21] Hoping for ...d3.} 28. a4 {[%emt 0:00:29]} (28. Nd5 $1 $15) 28... Nc7 $19 {[%emt 0:00:34]} 29. a5 {[%emt 0:07:04] [#]} (29. Bd6 $142) 29... Ne6 $1 {[%emt 0:00:51]} 30. Bd6 {[%emt 0:02:34]} Rd8 {[%emt 0:01:09]} 31. Be7 {[%emt 0:03:16]} Rd7 {[%emt 0:00:49]} 32. a6 {[%emt 0:00:12]} bxa6 {[%emt 0:00:21]} ({Don't do} 32... Rxe7 33. a7 Re8 34. a8=Q Rxa8 35. Rxa8+ Nf8 36. Ree8 Rb1+ 37. Ke2 Bh5+ 38. g4 $18) 33. Bc5 {[%emt 0:00:14]} h6 {[%emt 0:00:15] Black is clearly winning.} 34. Nxa6 {[%emt 0:00:18]} Bd3+ {[%emt 0:00:09]} 35. Kg1 {[%emt 0:00:26]} Bxa6 {Weighted Error Value: White=0.47/Black=0.15 (very precise)} 0-1

[Event "Fredericia Candidate 2022"]
[Site "Fredericia"]
[Date "2022.05.27"]
[Round "1.3"]
[White "Petersen, Steen"]
[Black "Andries, Alf"]
[Result "1/2-1/2"]
[ECO "A04"]
[WhiteElo "2103"]
[BlackElo "2049"]
[Annotator "TA"]
[PlyCount "61"]
[EventDate "2022.05.25"]
[EventType "swiss"]
[EventCountry "DEN"]
[SourceTitle "playchess.com"]
[Source "ChessBase"]
[SourceQuality "1"]
[TimeControl "40/5400+30:1800+30"]

{[%evp 21,61,-4,0,0,0,0,0,0,0,0,22,22,22,22,22,22,10,4,23,20,28,24,24,29,53,53,39,16,46,46,46,46,39,0,26,27,33,0,0,0,0,-31]} 1. Nf3 {[%emt 0:02:46]} c5 {[%emt 0:00:26]} 2. c4 {[%emt 0:00:18]} Nc6 {[%emt 0:00:21]} 3. g3 {[%emt 0:00:52]} e5 {[%emt 0:00:29]} 4. Nc3 {[%emt 0:00:31]} g6 {[%emt 0:00:43]} 5. Bg2 {[%emt 0:00:32]} d6 {[%emt 0:00:50]} 6. d3 {[%emt 0:00:44]} Bg7 {[%emt 0:00:22]} 7. Nd2 {[%emt 0:03:14][%cal Bf3d2,Bd2f1,Bf1e3][%mdl 32]} Nge7 {[%emt 0:04:43]} 8. Nf1 {[%emt 0:01:20]} O-O {[%emt 0:03:49]} 9. Ne3 {[%emt 0:00:23]} Rb8 {[%emt 0:01:37]} 10. a3 {[%emt 0:04:27]} a6 {[%emt 0:03:16]} 11. O-O {[%emt 0:07:00]} b5 {[%emt 0:09:31]} 12. Rb1 {[%emt 0:01:00] [#] A37: Symmetrical English vs ...g6: 4 Bg2 Bg7 5 Nf3.} b4 $146 {[%emt 0:04:39]} ({Predecessor:} 12... Be6 13. Ned5 Qd7 14. b4 cxb4 15. axb4 Bh3 16. e4 Bg4 17. Qd2 Nd4 18. Nxe7+ Qxe7 {½-½ (36) Rodshtein,M (2684)-Djukic,N (2517) Batumi 2019}) 13. axb4 {[%emt 0:04:56]} Nxb4 {[%emt 0:01:29]} 14. Ned5 {[%emt 0:03:10]} Nexd5 {[%emt 0:06:49]} 15. Nxd5 {[%emt 0:00:24]} Nxd5 {[%emt 0:10:04]} 16. Bxd5 {[%emt 0:00:27]} Bb7 {[%emt 0:00:21]} 17. Bxb7 {[%emt 0:04:03]} Rxb7 {[%emt 0:00:05]} 18. Qa4 {[%emt 0:00:18]} Rb6 {[%emt 0:01:38]} 19. Bd2 {[%emt 0:02:06] [#] Strongly threatening Ba5.} Qb8 {[%emt 0:02:57]} 20. b4 {[%emt 0:10:40]} Qb7 {[%emt 0:04:44]} 21. Rb3 {[%emt 0:00:56]} Rb8 {[%emt 0:05:42]} 22. Rfb1 {[%emt 0:01:21]} d5 {[%emt 0:00:54]} 23. b5 {[%emt 0:09:17] Black must now prevent bxa6.} Qd7 {[%emt 0:02:56]} 24. Ba5 {[%emt 0:05:54]} (24. Qa2 $5 {[%cal Rb5a6]} axb5 25. Rxb5 Rxb5 26. cxb5 $14) 24... axb5 {[%emt 0:01:47]} 25. Rxb5 {[%emt 0:01:48]} Rxb5 {[%emt 0:01:03]} 26. Rxb5 {[%emt 0:00:24]} Rc8 {[%emt 0:04:59]} 27. Qb3 {[%emt 0:02:39]} dxc4 {[%emt 0:01:29]} 28. Qxc4 {[%emt 0:05:10]} Qd4 {[%emt 0:01:39]} 29. Qc1 {[%emt 0:15:21]} e4 {[%emt 0:09:50]} 30. Rb3 exd3 31. exd3 {Weighted Error Value: White=0.06 (flawless) /Black=0.07 (flawless)} 1/2-1/2

[Event "Fredericia Candidate 2022"]
[Site "Fredericia"]
[Date "2022.05.27"]
[Round "1.4"]
[White "Zander, Emil"]
[Black "Medhus, Vitus Bondo"]
[Result "0-1"]
[ECO "B38"]
[WhiteElo "2018"]
[BlackElo "2100"]
[Annotator "TA"]
[PlyCount "88"]
[EventDate "2022.05.25"]
[EventType "swiss"]
[EventCountry "DEN"]
[SourceTitle "playchess.com"]
[Source "ChessBase"]
[SourceQuality "1"]
[TimeControl "40/5400+30:1800+30"]

{[%evp 12,88,54,45,57,41,43,28,34,26,25,20,22,22,22,17,52,27,70,10,84,75,78,58,68,55,38,44,46,24,23,34,37,35,136,139,154,160,162,162,162,150,177,-326,-332,-313,-322,-319,-312,-396,-392,-376,-357,-546,-529,-563,-556,-556,-543,-564,-556,-551,-534,-518,-517,-29972,-29973,-29973,-29974,-29974,-29974,-29975,-29976,-29976,-29976,-29978,-29976,-29979,-29977]} 1. e4 {[%emt 0:00:04]} c5 {[%emt 0:00:05]} 2. Nf3 {[%emt 0:00:15]} g6 {[%emt 0:00:06]} 3. d4 {[%emt 0:00:14]} cxd4 {[%emt 0:00:06]} 4. Nxd4 {[%emt 0:00:11]} Bg7 {[%emt 0:00:07]} 5. c4 {[%emt 0:00:13]} Nc6 {[%emt 0:00:08]} 6. Be3 {[%emt 0:00:11]} Nf6 {[%emt 0:00:10]} 7. Nc3 {[%emt 0:00:20]} Qa5 {[%emt 0:00:43] B38: Sicilian: Maroczy Bind with 5...Bg7 and 7...0-0.} 8. f3 {[%emt 0:00:27]} O-O {[%emt 0:00:23]} 9. Qd2 {[%emt 0:01:18]} d6 {[%emt 0:01:09] White has an edge.} 10. Rc1 {[%emt 0:01:09]} Nxd4 {[%emt 0:01:57]} 11. Bxd4 {[%emt 0:00:40]} Be6 {[%emt 0:00:55]} 12. b3 {[%emt 0:03:35]} Rfc8 {[%emt 0:05:15]} 13. Be2 {[%emt 0:05:07]} Nd7 {[%emt 0:19:50]} 14. Be3 {[%emt 0:05:53] [#]} f5 $146 {[%emt 0:10:52]} ({Predecessor:} 14... a6 15. Nd5 Qxd2+ 16. Kxd2 Bxd5 17. exd5 a5 18. Rc2 b6 19. Rb1 Rc7 20. a3 Rb8 21. g4 h6 22. h4 {½-½ (22) Schleining,Z (2377)-De Jager,J (2423) Haarlem 2017}) 15. O-O {[%emt 0:08:33]} ({White should try} 15. exf5 $14 Bxf5 16. O-O) 15... Nf6 {[%emt 0:08:23] [#]} (15... fxe4 $11 16. Nxe4 Qxd2 17. Bxd2 Ne5) 16. exf5 $1 $16 {[%emt 0:07:14]} Bxf5 {[%emt 0:00:34]} 17. Bd3 {[%emt 0:00:19]} Rd8 {[%emt 0:04:57]} 18. b4 {[%emt 0:05:42]} Qxb4 {[%emt 0:04:50]} 19. Rb1 {[%emt 0:00:32][%cal Bc1b1,Bb1b5,Bb5b7,Bb7c7][%mdl 32]} Qa5 {[%emt 0:02:47]} 20. Rb5 $36 {[%emt 0:01:10][%mdl 2048] White is more active.} (20. Rxb7 $5 {[%cal Rd3f5]} Nd5 21. Nxd5 Qxd2 22. Bxd2 (22. Nxe7+ Kh8 $16) 22... Bxd3 23. Nxe7+ Kh8 24. Rc1 $16) 20... Qc7 {[%emt 0:02:25]} 21. Bxf5 {[%emt 0:00:11]} gxf5 {[%emt 0:00:14]} 22. Nd5 {[%emt 0:00:38]} (22. Rxf5 Qxc4 23. Rf4 Qf7 $11) 22... Nxd5 {[%emt 0:00:56]} ({Better is} 22... Qd7 $14) 23. Qxd5+ {[%emt 0:00:14]} Kh8 {[%emt 0:00:31]} 24. Rxb7 {[%emt 0:00:15]} e6 {[%emt 0:02:31]} 25. Rxc7 {[%emt 0:00:53]} exd5 {[%emt 0:00:20]} 26. cxd5 {[%emt 0:00:02]} Re8 {[%emt 0:00:36]} 27. Bxa7 {[%emt 0:00:58][%mdl 8192] [#]} (27. Kf2 $18) 27... Rxa7 $1 $19 {[%emt 0:00:18][%mdl 576] Remove Defender} 28. Rxa7 $18 {[%emt 0:00:11][%mdl 4096] Endgame KRR-KRB} Bd4+ {[%emt 0:00:06]} 29. Kh1 {[%emt 0:00:15]} Bxa7 $19 {[%emt 0:00:08] KRB-KR} 30. Rc1 {[%emt 0:00:16]} Re2 {[%emt 0:03:05]} 31. a4 {[%emt 0:01:28]} ({Much weaker is} 31. Rc8+ Kg7 32. h4 Rxa2 $19) 31... Ra2 {[%emt 0:00:34]} 32. g4 {[%emt 0:01:07]} ({But not} 32. Rc8+ Kg7 33. g4 Rxa4 $19) (32. g3 $142 Rxa4 33. Rc7) 32... Rxa4 {[%emt 0:01:19]} ({Weaker is} 32... fxg4 33. Rc8+ Kg7 34. Rc7+ Kf6 35. Rxa7 $17) 33. gxf5 {[%emt 0:00:06]} Bc5 {[%emt 0:00:24]} 34. Re1 Rf4 {[%emt 0:01:44][%csl LRf3,LRf5]} 35. Kg2 {[%emt 0:02:45]} Rxf5 {[%emt 0:00:17]} 36. Rd1 {[%emt 0:00:06]} Rf4 {[%emt 0:00:51]} 37. Kg3 {[%emt 0:00:06]} Rd4 {[%emt 0:00:41]} 38. Rxd4 {[%emt 0:00:09]} (38. Re1 $19 Kg7 39. Re7+ Kg6 40. Re8) 38... Bxd4 {[%emt 0:00:07] KB-K3P. Black mates.} 39. Kg4 {[%emt 0:00:08]} Kg7 {[%emt 0:00:29]} 40. Kf5 {[%emt 0:00:06]} h6 {[%emt 0:02:13]} 41. f4 {[%emt 0:31:33]} Kf7 {[%emt 0:30:37]} 42. h3 {[%emt 0:00:59]} Bc3 {[%emt 0:00:23]} 43. h4 {[%emt 0:00:08]} Bb2 {[%emt 0:00:40]} 44. Ke4 {[%emt 0:01:02]} Kf6 {[%emt 0:00:18] Weighted Error Value: White=0.56/Black=0.15 (very precise)} 0-1

[Event "Fredericia Candidate 2022"]
[Site "Fredericia"]
[Date "2022.05.27"]
[Round "1.5"]
[White "Madsen, Michael B."]
[Black "Pedersen, Lars Wilton"]
[Result "1/2-1/2"]
[ECO "D35"]
[WhiteElo "2084"]
[BlackElo "2006"]
[Annotator "TA"]
[PlyCount "32"]
[EventDate "2022.05.25"]
[EventType "swiss"]
[EventCountry "DEN"]
[SourceTitle "playchess.com"]
[Source "ChessBase"]
[SourceQuality "1"]
[TimeControl "40/5400+30:1800+30"]

{[%evp 15,32,12,38,16,20,13,14,0,0,0,9,10,8,13,14,11,7,-4,14]} 1. d4 {[%emt 0:00:02]} e6 {[%emt 0:03:25]} 2. c4 {[%emt 0:00:37]} d5 {[%emt 0:01:06]} 3. Nc3 {[%emt 0:00:47]} Nf6 {[%emt 0:01:53]} 4. cxd5 {[%emt 0:00:53]} exd5 {[%emt 0:00:08]} 5. Bg5 {[%emt 0:00:15]} c6 {[%emt 0:00:23]} 6. e3 {[%emt 0:00:08]} Be7 {[%emt 0:00:53]} 7. Bd3 {[%emt 0:00:09]} O-O {[%emt 0:00:17]} 8. Nge2 {[%emt 0:00:24]} Ne4 {[%emt 0:02:23]} 9. Bxe7 {[%emt 0:17:28] D35: Queen's Gambit Declined: Exchange Variation.} Qxe7 {[%emt 0:00:12] The position is equal.} 10. Bxe4 {[%emt 0:00:46]} dxe4 {[%emt 0:00:12]} 11. Qc2 {[%emt 0:00:09]} f5 {[%emt 0:02:07]} 12. h4 {[%emt 0:01:46]} Na6 {[%emt 0:04:26]} 13. Nf4 {[%emt 0:04:31]} Be6 {[%emt 0:00:57] Prevents Qb3.} 14. a3 {[%emt 0:01:14] Against Nb4} Nc7 {[%emt 0:00:56] [#]} 15. Nce2 $146 {[%emt 0:09:03]} ({Predecessor:} 15. O-O-O Qf7 16. Rdg1 c5 17. dxc5 Bb3 18. Qe2 Ne6 19. Nxe6 Qxe6 20. g4 f4 21. Qb5 fxe3 22. fxe3 {½-½ (41) Svenneby,J-Grande,J Norway 1965}) 15... Bd5 {[%emt 0:05:40]} 16. g3 {[%emt 0:00:37]} Rfd8 {An interesting draw.  Weighted Error Value: White=0.07 (flawless) /Black=0.06 (flawless)} 1/2-1/2

[Event "Fredericia Candidate 2022"]
[Site "Fredericia"]
[Date "2022.05.27"]
[Round "1.6"]
[White "Motzkus, Mikkel"]
[Black "Hye, Allan"]
[Result "1/2-1/2"]
[ECO "D02"]
[WhiteElo "1993"]
[BlackElo "2072"]
[Annotator "TA"]
[PlyCount "96"]
[EventDate "2022.05.25"]
[EventType "swiss"]
[EventCountry "DEN"]
[SourceTitle "playchess.com"]
[Source "ChessBase"]
[SourceQuality "1"]
[TimeControl "40/5400+30:1800+30"]

{[%evp 21,96,26,31,6,37,35,43,29,37,35,39,29,48,31,41,14,28,16,23,-56,-67,-57,-58,-63,-55,-64,-52,-47,-26,-37,-41,-52,-45,-45,0,0,0,0,0,0,0,-16,-16,-16,-16,-16,-16,-16,-16,-16,-16,-16,-16,-33,-16,-16,-16,-16,-16,-35,0,-17,0,-35,-17,-35,-1,-9,0,-28,-28,-35,0,0,249,241,6395]} 1. d4 {[%emt 0:02:23]} d5 {[%emt 0:01:20]} 2. Nf3 {[%emt 0:00:10]} Nf6 {[%emt 0:00:08]} 3. c4 {[%emt 0:00:13]} e6 {[%emt 0:00:30]} 4. g3 {[%emt 0:00:35]} c6 {[%emt 0:06:07]} 5. Bg2 {[%emt 0:00:23]} Bd6 {[%emt 0:04:26]} 6. Nbd2 {[%emt 0:03:10]} Nbd7 {[%emt 0:01:15]} 7. Qc2 {[%emt 0:01:26]} O-O {[%emt 0:01:34]} 8. O-O {[%emt 0:03:49]} b6 {[%emt 0:20:52]} 9. e4 {[%emt 0:00:20]} Nxe4 {[%emt 0:00:19]} 10. Nxe4 {[%emt 0:00:07]} dxe4 {[%emt 0:00:09]} 11. Qxe4 {[%emt 0:00:10]} Bb7 $1 {[%emt 0:01:17]} 12. Ne5 {[%emt 0:11:51] E01: Catalan: Early deviations.} Rc8 {[%emt 0:12:05]} 13. Bf4 {[%emt 0:13:02][%cal Oe5f7] aiming for Nxf7!} Qe7 {[%emt 0:04:22] [#]} 14. Rfe1 $146 {[%emt 0:20:39] White is slightly better.} ({Predecessor:} 14. Rac1 Rfe8 15. c5 Bxe5 16. Bxe5 bxc5 17. dxc5 Nxc5 18. Qb4 {1-0 (18) Thiele,M-Van Prooijen,J Netherlands 1995}) 14... Rfe8 {[%emt 0:02:48]} 15. Rad1 {[%emt 0:04:55]} Red8 {[%emt 0:08:01]} 16. a3 {[%emt 0:09:20]} Ba8 {[%emt 0:01:47]} 17. Nxd7 {[%emt 0:10:37]} Rxd7 {[%emt 0:02:57]} 18. Bxd6 {[%emt 0:06:28]} Qxd6 {[%emt 0:03:04]} 19. Qe5 {[%emt 0:01:21]} Rcd8 {[%emt 0:01:19]} 20. f4 {[%emt 0:02:19]} (20. Qe3 $11) 20... Qxe5 $15 {[%emt 0:01:19]} 21. Rxe5 {[%emt 0:00:38]} Rxd4 {[%emt 0:04:14]} 22. Rxd4 {[%emt 0:00:06]} Rxd4 {[%emt 0:00:07][%mdl 4096] Endgame KRB-KRB} 23. c5 {[%emt 0:04:08]} Rd1+ {[%emt 0:00:29]} 24. Kf2 {[%emt 0:01:17]} Bb7 {[%emt 0:09:02]} 25. b4 {[%emt 0:01:28][%cal Ob4b5]} Rd2+ {[%emt 0:00:40]} 26. Re2 {[%emt 0:01:49]} Rxe2+ {[%emt 0:01:08]} 27. Kxe2 {[%emt 0:00:02] KB-KB} b5 {[%emt 0:08:05]} 28. Kd3 {[%emt 0:00:37]} f6 {[%emt 0:00:36]} 29. Kd4 {[%emt 0:00:10]} Kf7 {[%emt 0:00:13]} 30. Be4 {[%emt 0:00:38]} h6 {[%emt 0:00:15]} 31. Bf3 {[%emt 0:00:46]} Ke7 {[%emt 0:02:57]} 32. h4 {[%emt 0:00:31]} Kd7 {[%emt 0:01:30]} 33. Bg4 {[%emt 0:00:45]} Bc8 {[%emt 0:00:10]} 34. Bf3 {[%emt 0:00:15]} Kc7 {[%emt 0:00:10]} 35. Be4 {[%emt 0:00:38]} Bd7 {[%emt 0:00:09]} 36. Bg6 {[%emt 0:00:43]} Kd8 {[%emt 0:00:12]} 37. Bh5 {[%emt 0:00:24]} Ke7 {[%emt 0:00:20]} 38. Bf3 {[%emt 0:00:19]} Be8 {[%emt 0:00:43]} 39. h5 {[%emt 0:00:36]} Kd7 {[%emt 0:01:30]} 40. Be2 {[%emt 0:00:35]} Ke7 {[%emt 0:01:29]} 41. Bf3 {[%emt 0:30:31]} Kd7 {[%emt 0:11:11]} 42. Be2 {[%emt 0:00:00]} Bf7 {[%emt 0:00:21]} 43. Bf3 {[%emt 0:00:00]} Bg8 {[%emt 0:03:56]} 44. Be4 {[%emt 0:00:00]} Bf7 {[%emt 0:00:56]} 45. Bf3 {[%emt 0:00:00]} g6 46. g4 {[%cal Og4g5] [#] Black must now prevent g5!} g5 47. fxg5 hxg5 (47... e5+ $11 {and Black has nothing to worry.} 48. Ke4 Bd5+ 49. Kf5 e4 50. Bxe4 Bxe4+ 51. Kxe4 fxg5) 48. h6 $18 {Threatening mate with h7.} Be8 $2 {[%mdl 32768] Weighted Error Value: White=0.09 (flawless) /Black=0.19 (very precise) . An unexpected result.} (48... Bg8 49. Be4 Kc7) 1/2-1/2

[Event "Fredericia Candidate 2022"]
[Site "Fredericia"]
[Date "2022.05.28"]
[Round "3.1"]
[White "Loftgaard, Mikkel Vinh"]
[Black "Medhus, Vitus Bondo"]
[Result "1-0"]
[ECO "B22"]
[WhiteElo "2072"]
[BlackElo "2100"]
[Annotator "TA"]
[PlyCount "45"]
[EventDate "2022.05.25"]
[EventType "swiss"]
[EventCountry "DEN"]
[SourceTitle "playchess.com"]
[Source "ChessBase"]
[SourceQuality "1"]
[TimeControl "40/5400+30:1800+30"]

{[%evp 17,45,0,0,-6,0,0,0,0,63,12,62,58,77,81,116,137,122,6,16,15,10,20,214,150,916,876,29993,29994,29994,29995]} 1. e4 {[%emt 0:00:02]} c5 {[%emt 0:00:06]} 2. c3 {[%emt 0:00:04]} Nf6 {[%emt 0:00:09]} 3. e5 {[%emt 0:00:06]} Nd5 {[%emt 0:00:39]} 4. d4 {[%emt 0:00:05]} cxd4 {[%emt 0:00:05]} 5. Nf3 {[%emt 0:00:06]} Nc6 {[%emt 0:00:35]} 6. cxd4 {[%emt 0:00:06]} d6 {[%emt 0:00:06]} 7. Bc4 {[%emt 0:00:05]} Nb6 {[%emt 0:00:10]} 8. Bb5 {[%emt 0:00:06]} dxe5 {[%emt 0:00:11]} 9. Nxe5 {[%emt 0:00:08]} Bd7 {[%emt 0:00:10] Threatens to win with ...Nxe5.} 10. a4 {[%emt 0:00:06] B22: Sicilian: 2 c3.} Nxe5 {[%emt 0:00:17]} 11. dxe5 {[%emt 0:00:10][%cal Oe5e6]} e6 {[%emt 0:00:11]} 12. O-O {[%emt 0:00:18] [#] The position is equal.} Qc7 $146 {[%emt 0:01:24]} (12... Bxb5 $11 13. Qxd8+ Kxd8 14. axb5 Nd5) ({Predecessor:} 12... a6 13. Bxd7+ Nxd7 14. Bf4 g5 15. Be3 Nxe5 16. Qh5 Qf6 17. Nc3 Be7 18. f4 Nc4 {0-1 (47) Sveshnikov,E (2502)-Shirov,A (2701) Riga 2014}) 13. Be3 {[%emt 0:01:41]} (13. Nc3 $14) 13... Nd5 {[%emt 0:11:48]} (13... Bc6 $11) 14. Nc3 $14 {[%emt 0:03:16]} Nxe3 {[%emt 0:03:22]} 15. fxe3 {[%emt 0:03:13][%cal Bf2e3,Be3e4][%mdl 32]} Bxb5 {[%emt 0:01:42]} 16. Nxb5 {[%emt 0:00:16]} Qxe5 {[%emt 0:00:28] [#] White must now prevent ...Bc5.} 17. Qf3 {[%emt 0:00:09] White is more active.} ({White must play} 17. Rc1 $1 $16 {Strongly threatening Nc7+.} Rd8 18. Nc7+ (18. Qf3 f5 $16) 18... Ke7 19. Qb3) 17... O-O-O {[%emt 0:06:35] Prevents Nc7.} 18. Rac1+ {[%emt 0:02:02][%mdl 1024] White has compensation.} (18. Qxf7 Bc5 19. Rac1 Kb8 $17) 18... Kb8 $1 {[%emt 0:00:08]} 19. Rc7 {[%emt 0:00:32][%csl Gc7][%cal Rf3b7]} ({Much weaker is} 19. Qxf7 Bc5 20. Rc3 Bxe3+ 21. Kh1 Bc5 22. Qc7+ (22. Rfc1 $2 Bb6 $17) 22... Qxc7 $17) 19... Qd5 {[%emt 0:01:40]} (19... Rd5 $11 {and Black stays safe.}) 20. e4 $40 {[%emt 0:00:47][%mdl 128] White attacks with force.} ({Inferior is} 20. Rxf7 Qxf3 21. R1xf3 Bc5 $11) ({Not} 20. Qxf7 a6 21. Rc2 Rd7 22. Qe8+ Rd8 $11) 20... Qe5 {[%emt 0:06:00]} (20... Bc5+ $16 21. Kh1 Qe5) 21. Qf2 $18 {[%emt 0:01:49][%csl Gb5][%cal Rf2a7]} b6 {[%emt 0:04:45]} 22. Qxf7 {[%emt 0:00:13]} Bc5+ {[%emt 0:06:39] [#]} 23. Kh1 $1 {[%emt 0:00:23] Weighted Error Value: White=0.32/Black=0.72} 1-0

[Event "Fredericia Candidate 2022"]
[Site "Fredericia"]
[Date "2022.05.28"]
[Round "3.2"]
[White "Madsen, Michael B."]
[Black "Motzkus, Mikkel"]
[Result "1/2-1/2"]
[ECO "D80"]
[WhiteElo "2084"]
[BlackElo "1993"]
[Annotator "TA"]
[PlyCount "30"]
[EventDate "2022.05.25"]
[EventType "swiss"]
[EventCountry "DEN"]
[SourceTitle "playchess.com"]
[Source "ChessBase"]
[SourceQuality "1"]
[TimeControl "40/5400+30:1800+30"]

{[%evp 9,30,17,12,24,40,16,30,8,5,0,-4,-16,-15,-92,-98,-104,-109,-103,-91,-103,-105,-113,-99]} 1. d4 {[%emt 0:00:04]} Nf6 {[%emt 0:00:09]} 2. c4 {[%emt 0:00:06]} g6 {[%emt 0:00:34]} 3. Nc3 {[%emt 0:00:11]} d5 {[%emt 0:01:17]} 4. Bg5 {[%emt 0:00:18]} Ne4 {[%emt 0:05:23]} 5. h4 {[%emt 0:00:09]} Nxc3 {[%emt 0:05:12]} 6. bxc3 {[%emt 0:00:13] D80: Grünfeld: Unusual White 4th moves and 4 Bg5.} Bg7 {[%emt 0:04:41]} 7. e3 {[%emt 0:00:31]} c5 {[%emt 0:06:13]} 8. Nf3 {[%emt 0:02:49] White has an edge.} Nc6 {[%emt 0:01:15] [#]} 9. Qd2 $146 {[%emt 0:25:45]} ({Predecessor:} 9. Rc1 Be6 10. Qa4 O-O 11. dxc5 h6 12. Bf4 Rc8 13. Nd2 Qd7 14. Be2 Rfd8 15. Qa3 {½-½ (52) Maghsoodloo,P (2590)-Gabuzyan,H (2566) Khomeyn 2017}) 9... O-O {[%emt 0:19:38][%cal Bh8f8,Bf8f7,Bf7f5,Bf5g5][%mdl 32]} 10. h5 {[%emt 0:16:33]} h6 {[%emt 0:10:26]} 11. hxg6 {[%emt 0:22:40]} hxg5 $17 {[%emt 0:00:08] Black is better.} 12. gxf7+ {[%emt 0:00:06]} Rxf7 {[%emt 0:00:12]} 13. Nxg5 {[%emt 0:00:02]} Rf5 {[%emt 0:11:38]} 14. cxd5 {[%emt 0:04:16] [#] Strongly threatening e4.} Rxg5 {[%emt 0:05:16]} 15. dxc6 {[%emt 0:00:33]} bxc6 {[%emt 0:04:25] Black took control after the opening.  Weighted Error Value: White=0.24 (precise) /Black=0.03 (flawless)} 1/2-1/2